fUSD/lending_fUSD_20250208
["ID","MTS","AMOUNT","RATE_DAILY","PERIOD"]
[352234538,1739013057716,-503.04940138,0.00011134,2]
[352234539,1739013057726,-769.04,0.00011134,2]
[352234540,1739013057735,-500.0,0.00011134,2]
[352234541,1739013057745,-500.0,0.00011134,2]
[352234542,1739013057755,-1609.57,0.00011134,2]
[352234543,1739013057765,-500.0,0.00011134,2]
[352234544,1739013057774,-500.0,0.00011134,2]
[352234545,1739013057784,-351.03731369,0.00011134,2]
[352234546,1739013057793,-3900.57,0.00011134,2]
[352234547,1739013057803,-500.0,0.00011134,2]
[352234548,1739013057813,-2579.73,0.00011134,2]
[352234549,1739013057822,-3578.24,0.00011134,2]
[352234550,1739013057831,-500.0,0.00011134,2]
[352234551,1739013057841,-500.0,0.00011134,2]
[352234552,1739013057850,-2832.35,0.00011134,2]
[352234553,1739013057860,-500.0,0.00011134,2]
[352234554,1739013057870,-500.0,0.00011134,2]
[352234555,1739013057879,-3996.35,0.00011134,2]
[352234556,1739013057889,-813.25,0.00011134,2]
[352234557,1739013057899,-507.00338431,0.00011134,2]
[352234558,1739013057909,-6617.64,0.00011134,2]
[352234559,1739013057919,-412.37015456,0.00011134,2]
[352234560,1739013057929,-500.0,0.00011134,2]
[352234561,1739013057939,-4921.37,0.00011134,2]
[352234562,1739013057948,-500.0,0.00011134,2]
[352234563,1739013057958,-701.82,0.00011134,2]
[352234564,1739013057967,-502.64628971,0.00011134,2]
[352234565,1739013057977,-500.0,0.00011134,2]
[352234566,1739013057987,-2017.92,0.00011134,2]
[352234567,1739013057996,-755.0,0.00011134,2]
[352234568,1739013058005,-974.03,0.00011134,2]
[352234569,1739013058016,-1908.71,0.00011134,2]
[352234570,1739013058025,-642.67,0.00011134,2]
[352234571,1739013058035,-500.0,0.00011134,2]
[352234572,1739013058045,-2729.51,0.00011134,2]
[352234573,1739013058055,-500.0,0.00011134,2]
[352234574,1739013058064,-2356.49,0.00011134,2]
[352234575,1739013058073,-4684.81,0.00011134,2]
[352234576,1739013058083,-948.63,0.00011134,2]
[352234577,1739013058093,-3928.31,0.00011134,2]
[352234578,1739013058103,-500.0,0.00011134,2]
[352234579,1739013058112,-1496.66,0.00011134,2]
[352234580,1739013058121,-500.0,0.00011134,2]
[352234581,1739013058131,-500.0,0.00011134,2]
[352234582,1739013058140,-1961.59,0.00011134,2]
[352234583,1739013058149,-848.49,0.00011135,2]
[352234584,1739013058159,-151.0,0.00011135,2]
[352234585,1739013058169,-500.0,0.00011135,2]
[352234586,1739013058178,-151.0,0.00011135,2]
[352234587,1739013058187,-1128.21,0.00011135,2]
[352234588,1739013058196,-4538.82,0.00011135,2]
[352234589,1739013058206,-500.0,0.00011135,2]
[352234590,1739013058216,-501.50673564,0.00011136,2]
[352234591,1739013058226,-500.0,0.00011136,2]
[352234592,1739013058236,-500.0,0.00011136,2]
[352234593,1739013058246,-155.91154811,0.00011136,2]
[352234594,1739013058256,-500.0,0.00011136,2]
[352234595,1739013058266,-548.63846741,0.00011136,2]
[352234596,1739013058277,-503.17258358,0.00011136,2]
[352234597,1739013058287,-500.0,0.00011136,2]
[352234598,1739013058296,-644.8797961,0.00011136,2]
[352234599,1739013058306,-500.0,0.00011136,2]
[352234600,1739013058316,-500.0,0.00011136,2]
[352234601,1739013058325,-500.0,0.00011136,2]
[352234602,1739013058335,-501.45004974,0.00011136,2]
[352234603,1739013058347,-501.44125751,0.00011136,2]
[352234604,1739013058359,-500.0,0.00011136,2]
[352234605,1739013058368,-500.0,0.00011136,2]
[352234606,1739013058377,-500.0,0.00011136,2]
[352234607,1739013058387,-633.17,0.00011136,2]
[352234608,1739013058398,-500.0,0.00011136,2]
[352234609,1739013058408,-372.87309936,0.00011136,2]
[352234610,1739013058417,-365.76955709,0.00011136,2]
[352234611,1739013058427,-500.0,0.00011136,2]
[352234612,1739013058437,-500.0,0.00011136,2]
[352234613,1739013058446,-654.42,0.00011136,2]
[352234614,1739013058455,-500.0,0.00011136,2]
[352234615,1739013058465,-500.0,0.00011136,2]
[352234616,1739013058475,-501.33512246,0.00011136,2]
[352234617,1739013058485,-500.0,0.00011136,2]
[352234618,1739013058495,-500.0,0.00011136,2]
[352234619,1739013058505,-500.0,0.00011136,2]
[352234620,1739013058514,-914.6,0.00011136,2]
[352234621,1739013058524,-501.76140586,0.00011136,2]
[352234622,1739013058533,-500.0,0.00011136,2]
[352234623,1739013058543,-500.66465497,0.00011136,2]
[352234624,1739013058553,-500.0,0.00011136,2]
[352234625,1739013058562,-500.0,0.00011136,2]
[352234626,1739013058571,-506.59792605,0.00011136,2]
[352234627,1739013058581,-922.56,0.00011136,2]
[352234628,1739013058591,-500.0,0.00011136,2]
[352234629,1739013058600,-500.0,0.00011136,2]
[352234630,1739013058610,-504.6708023,0.00011136,2]
[352234631,1739013058619,-500.0,0.00011136,2]
[352234632,1739013058629,-500.0,0.00011136,2]
[352234633,1739013058639,-500.0,0.00011136,2]
[352234634,1739013058648,-500.0,0.00011136,2]
[352234635,1739013058657,-500.0,0.00011136,2]
[352234636,1739013058667,-500.0,0.00011136,2]
[352234637,1739013058676,-637.97,0.00011136,2]
[352234638,1739013058685,-500.0,0.00011136,2]
[352234639,1739013058695,-515.26749111,0.00011136,2]
[352234640,1739013058704,-500.0,0.00011136,2]
[352234641,1739013058713,-500.0,0.00011136,2]
[352234642,1739013058723,-500.0,0.00011136,2]
[352234643,1739013058733,-500.0,0.00011136,2]
[352234644,1739013058742,-500.0,0.00011136,2]
[352234645,1739013058752,-500.77052418,0.00011136,2]
[352234646,1739013058762,-500.0,0.00011136,2]
[352234647,1739013058771,-500.0,0.00011136,2]
[352234648,1739013058781,-764.68,0.00011136,2]
[352234649,1739013058790,-500.0,0.00011136,2]
[352234650,1739013058799,-500.0,0.00011136,2]
[352234651,1739013058808,-500.0,0.00011136,2]
[352234652,1739013058817,-500.0,0.00011136,2]
[352234653,1739013058827,-634.37,0.00011136,2]
[352234654,1739013058905,-598.43,0.00011136,2]
[352234655,1739013058914,-500.0,0.00011136,2]
[352234656,1739013058923,-500.0,0.00011136,2]
[352234657,1739013058932,-500.0,0.00011136,2]
[352234658,1739013058941,-500.0,0.00011136,2]
[352234659,1739013058950,-500.0,0.00011136,2]
[352234660,1739013058959,-500.0,0.00011136,2]
[352234661,1739013058968,-500.0,0.00011136,2]
[352234662,1739013058976,-882.42,0.00011136,2]
[352234663,1739013058985,-352.34622882,0.00011136,2]
[352234664,1739013058994,-260.35267547,0.00011136,2]
[352234665,1739013059003,-500.0,0.00011136,2]
[352234666,1739013059012,-500.0,0.00011136,2]
[352234667,1739013059021,-500.0,0.00011136,2]
[352234668,1739013059030,-783.22,0.00011136,2]
[352234669,1739013059040,-500.0,0.00011136,2]
[352234670,1739013059050,-500.0,0.00011136,2]
[352234671,1739013059059,-503.1,0.00011136,2]
[352234672,1739013059068,-504.75370137,0.00011136,2]
[352234673,1739013059077,-500.0,0.00011136,2]
[352234674,1739013059086,-500.0,0.00011136,2]
[352234675,1739013059096,-500.0,0.00011136,2]
[352234676,1739013059105,-500.0,0.00011136,2]
[352234677,1739013059114,-500.0,0.00011136,2]
[352234678,1739013059122,-500.0,0.00011136,2]
[352234679,1739013059131,-500.0,0.00011136,2]
[352234680,1739013059140,-500.0,0.00011136,2]
[352234681,1739013059149,-895.58,0.00011136,2]
[352234682,1739013059158,-500.0,0.00011136,2]
[352234683,1739013059168,-500.0,0.00011136,2]
[352234684,1739013059177,-475.76908858,0.00011136,2]
[352234685,1739013059186,-500.0,0.00011136,2]
[352234686,1739013059194,-500.0,0.00011136,2]
[352234687,1739013059203,-500.0,0.00011136,2]
[352234688,1739013059212,-500.0,0.00011136,2]
[352234689,1739013059221,-554.68402521,0.00011136,2]
[352234690,1739013059231,-500.0,0.00011136,2]
[352234691,1739013059239,-500.0,0.00011136,2]
[352234692,1739013059249,-898.09,0.00011136,2]
[352234693,1739013059258,-500.0,0.00011136,2]
[352234694,1739013059268,-600.0,0.00011136,2]
[352234695,1739013059278,-500.0,0.00011136,2]
[352234696,1739013059288,-500.0,0.00011136,2]
[352234697,1739013059298,-505.65858042,0.00011136,2]
[352234698,1739013059307,-500.0,0.00011136,2]
[352234699,1739013059317,-500.0,0.00011136,2]
[352234700,1739013059327,-500.0,0.00011136,2]
[352234701,1739013059336,-500.0,0.00011136,2]
[352234702,1739013059348,-500.0,0.00011136,2]
[352234703,1739013059357,-500.0,0.00011136,2]
[352234704,1739013059367,-500.0,0.00011136,2]
[352234705,1739013059375,-500.0,0.00011136,2]
[352234706,1739013059386,-500.0,0.00011136,2]
[352234707,1739013059395,-500.0,0.00011136,2]
[352234708,1739013059404,-500.0,0.00011136,2]
[352234709,1739013059413,-500.0,0.00011136,2]
[352234710,1739013059422,-500.0,0.00011136,2]
[352234711,1739013059432,-500.0,0.00011136,2]
[352234712,1739013059442,-503.79,0.00011136,2]
[352234713,1739013059451,-500.0,0.00011136,2]
[352234714,1739013059460,-500.0,0.00011136,2]
[352234715,1739013059469,-500.0,0.00011136,2]
[352234716,1739013059479,-510.01024117,0.00011136,2]
[352234717,1739013059488,-500.0,0.00011136,2]
[352234718,1739013059497,-500.0,0.00011136,2]
[352234719,1739013059506,-500.0,0.00011136,2]
[352234720,1739013059515,-574.86781858,0.00011136,2]
[352234721,1739013059525,-500.0,0.00011136,2]
[352234722,1739013059534,-500.0,0.00011136,2]
[352234723,1739013059544,-500.0,0.00011136,2]
[352234724,1739013059553,-500.0,0.00011136,2]
[352234725,1739013059562,-500.0,0.00011136,2]
[352234726,1739013059571,-500.0,0.00011136,2]
[352234727,1739013059580,-500.0,0.00011136,2]
[352234728,1739013059590,-500.0,0.00011136,2]
[352234729,1739013059599,-500.0,0.00011136,2]
[352234730,1739013059609,-509.85804458,0.00011136,2]
[352234731,1739013059617,-500.0,0.00011136,2]
[352234732,1739013059627,-421.41105214,0.00011136,2]
[352234733,1739013059636,-500.0,0.00011136,2]
[352234734,1739013059646,-500.0,0.00011136,2]
[352234735,1739013059655,-651.32,0.00011136,2]
[352234736,1739013059665,-502.89639744,0.00011136,2]
[352234737,1739013059674,-711.88,0.00011136,2]
[352234738,1739013059683,-526.52,0.00011136,2]
[352234739,1739013059692,-500.0,0.00011136,2]
[352234740,1739013059702,-500.0,0.00011136,2]
[352234741,1739013059711,-500.0,0.00011136,2]
[352234742,1739013059721,-946.77,0.00011136,2]
[352234743,1739013059730,-1188.28,0.00011136,2]
[352234744,1739013059739,-414.27508751,0.00011136,2]
[352234745,1739013059748,-500.0,0.00011136,2]
[352234746,1739013059757,-500.0,0.00011136,2]
[352234747,1739013059768,-500.0,0.00011136,2]
[352234748,1739013059777,-891.2,0.00011136,2]
[352234749,1739013059790,-505.6326957,0.00011136,2]
[352234750,1739013059808,-508.20003177,0.00011136,2]
[352234751,1739013059825,-500.0,0.00011136,2]
[352234752,1739013059834,-500.0,0.00011136,2]
[352234753,1739013059843,-500.0,0.00011136,2]
[352234754,1739013059852,-500.0,0.00011136,2]
[352234755,1739013059862,-500.0,0.00011136,2]
[352234756,1739013059871,-500.0,0.00011136,2]
[352234757,1739013059880,-500.0,0.00011136,2]
[352234758,1739013059889,-500.0,0.00011136,2]
[352234759,1739013059899,-507.7209899,0.00011136,2]
[352234760,1739013059908,-1073.14,0.00011136,2]
[352234761,1739013059917,-302.38453297,0.00011136,2]
[352234762,1739013059926,-500.0,0.00011136,2]
[352234763,1739013059935,-500.0,0.00011136,2]
[352234764,1739013059944,-500.0,0.00011136,2]
[352234765,1739013059954,-621.38,0.00011136,2]
[352234766,1739013059963,-500.0,0.00011136,2]
[352234767,1739013059973,-500.0,0.00011136,2]
[352234768,1739013059982,-500.0,0.00011136,2]
[352234769,1739013059991,-500.0,0.00011136,2]
[352234770,1739013060000,-500.0,0.00011136,2]
[352234771,1739013060010,-500.0,0.00011136,2]
[352234772,1739013060020,-602.2,0.00011136,2]
[352234773,1739013060029,-500.0,0.00011136,2]
[352234774,1739013060039,-502.46,0.00011136,2]
[352234775,1739013060048,-500.0,0.00011136,2]
[352234776,1739013060058,-500.0,0.00011136,2]
[352234777,1739013060067,-503.87003087,0.00011136,2]
[352234778,1739013060076,-1923.99,0.00011136,2]
[352234779,1739013060085,-500.0,0.00011136,2]
[352234780,1739013060094,-293.05347277,0.00011136,2]
[352234781,1739013060103,-500.0,0.00011136,2]
[352234782,1739013060112,-1042.08,0.00011136,2]
[352234783,1739013060121,-500.0,0.00011136,2]
[352234784,1739013060130,-500.0,0.00011136,2]
[352234785,1739013060139,-502.78339277,0.00011136,2]
[352234786,1739013060148,-502.64462557,0.00011136,2]
[352234787,1739013060158,-753.74,0.00011136,2]
[352234788,1739013060167,-500.0,0.00011136,2]
[352234789,1739013060176,-721.0,0.00011136,2]
[352234790,1739013060186,-500.0,0.00011136,2]
[352234791,1739013060195,-604.54,0.00011136,2]
[352234792,1739013060204,-603.14,0.00011136,2]
[352234793,1739013060214,-860.81,0.00011136,2]
[352234794,1739013060223,-890.4,0.00011136,2]
[352234795,1739013060232,-931.55,0.00011136,2]
[352234796,1739013060241,-1239.47,0.00011136,2]
[352234797,1739013060251,-2019.59,0.00011136,2]
[352234798,1739013060260,-500.0,0.00011136,2]
[352234799,1739013060270,-755.49,0.00011136,2]
[352234800,1739013060279,-500.0,0.00011136,2]
[352234801,1739013060288,-506.96497327,0.00011136,2]
[352234802,1739013060297,-837.9,0.00011136,2]
[352234803,1739013060306,-500.0,0.00011136,2]
[352234804,1739013060315,-500.0,0.00011136,2]
[352234805,1739013060324,-503.88524772,0.00011136,2]
[352234806,1739013060333,-500.0,0.00011136,2]
[352234807,1739013060342,-538.65422454,0.00011136,2]
[352234808,1739013060354,-572.48,0.00011136,2]
[352234809,1739013060363,-500.0,0.00011136,2]
[352234810,1739013060372,-1033.35,0.00011136,2]
[352234811,1739013060381,-500.0,0.00011136,2]
[352234812,1739013060391,-219.787729,0.00011136,2]
[352234813,1739013060400,-500.0,0.00011136,2]
[352234814,1739013060409,-500.0,0.00011136,2]
[352234815,1739013060418,-506.99424087,0.00011136,2]
[352234816,1739013060427,-2008.9,0.00011136,2]
[352234817,1739013060436,-500.0,0.00011136,2]
[352234818,1739013060446,-500.0,0.00011136,2]
[352234819,1739013060455,-500.0,0.00011136,2]
[352234820,1739013060464,-500.0,0.00011136,2]
[352234821,1739013060473,-696.95,0.00011136,2]
[352234822,1739013060482,-723.92,0.00011136,2]
[352234823,1739013060491,-500.0,0.00011136,2]
[352234824,1739013060501,-500.0,0.00011136,2]
[352234825,1739013060510,-504.96,0.00011136,2]
[352234826,1739013060520,-2033.67,0.00011136,2]
[352234827,1739013060530,-500.0,0.00011136,2]
[352234828,1739013060539,-500.29927466,0.00011136,2]
[352234829,1739013060549,-500.0,0.00011136,2]
[352234830,1739013060560,-500.0,0.00011136,2]
[352234831,1739013060570,-500.0,0.00011136,2]
[352234832,1739013060579,-2296.52,0.00011136,2]
[352234833,1739013060589,-500.0,0.00011136,2]
[352234834,1739013060599,-500.0,0.00011136,2]
[352234835,1739013060608,-1085.81,0.00011136,2]
[352234836,1739013060618,-500.0,0.00011136,2]
[352234837,1739013060627,-500.0,0.00011136,2]
[352234838,1739013060636,-500.0,0.00011136,2]
[352234839,1739013060646,-500.0,0.00011136,2]
[352234840,1739013060655,-727.02,0.00011136,2]
[352234841,1739013060664,-929.17,0.00011136,2]
[352234842,1739013060673,-500.0,0.00011136,2]
[352234843,1739013060682,-505.69668164,0.00011136,2]
[352234844,1739013060691,-501.22919663,0.00011136,2]
[352234845,1739013060701,-991.68,0.00011136,2]
[352234846,1739013060710,-500.0,0.00011136,2]
[352234847,1739013060719,-500.0,0.00011136,2]
[352234848,1739013060728,-500.0,0.00011136,2]
[352234849,1739013060737,-500.0,0.00011136,2]
[352234850,1739013060746,-500.0,0.00011136,2]
[352234851,1739013060756,-500.0,0.00011136,2]
[352234852,1739013060765,-500.0,0.00011136,2]
[352234853,1739013060774,-500.56,0.00011136,2]
[352234854,1739013060783,-775.33,0.00011136,2]
[352234855,1739013060793,-500.0,0.00011136,2]
[352234856,1739013060802,-500.0,0.00011136,2]
[352234857,1739013060811,-746.97,0.00011136,2]
[352234858,1739013060820,-1543.04,0.00011136,2]
[352234859,1739013060830,-500.0,0.00011136,2]
[352234860,1739013060839,-500.0,0.00011136,2]
[352234861,1739013060848,-500.0,0.00011136,2]
[352234862,1739013060858,-987.5,0.00011136,2]
[352234863,1739013060867,-500.0,0.00011136,2]
[352234864,1739013060877,-500.0,0.00011136,2]
[352234865,1739013060886,-500.0,0.00011136,2]
[352234866,1739013060895,-500.0,0.00011136,2]
[352234867,1739013060904,-500.0,0.00011136,2]
[352234868,1739013060913,-2244.47,0.00011136,2]
[352234869,1739013060923,-500.0,0.00011136,2]
[352234870,1739013060932,-264.63898836,0.00011136,2]
[352234871,1739013060941,-850.11,0.00011136,2]
[352234872,1739013060951,-500.0,0.00011136,2]
[352234873,1739013060961,-500.0,0.00011136,2]
[352234874,1739013060970,-738.4,0.00011136,2]
[352234875,1739013060980,-500.0,0.00011136,2]
[352234876,1739013060989,-2170.82,0.00011136,2]
[352234877,1739013060998,-505.64780764,0.00011136,2]
[352234878,1739013061007,-500.0,0.00011136,2]
[352234879,1739013061017,-500.0,0.00011136,2]
[352234880,1739013061027,-883.23,0.00011136,2]
[352234881,1739013061036,-500.0,0.00011136,2]
[352234882,1739013061046,-500.0,0.00011136,2]
[352234883,1739013061055,-500.0,0.00011136,2]
[352234884,1739013061065,-1022.79,0.00011136,2]
[352234885,1739013061075,-500.0,0.00011136,2]
[352234886,1739013061085,-500.0,0.00011136,2]
[352234887,1739013061095,-500.0,0.00011136,2]
[352234888,1739013061106,-500.0,0.00011136,2]
[352234889,1739013061115,-500.0,0.00011136,2]
[352234890,1739013061125,-500.0,0.00011136,2]
[352234891,1739013061135,-1744.67,0.00011136,2]
[352234892,1739013061145,-500.0,0.00011136,2]
[352234893,1739013061161,-815.19,0.00011136,2]
[352234894,1739013061171,-581.304326,0.00011136,2]
[352234895,1739013061180,-503.52,0.00011136,2]
[352234896,1739013061190,-721.28,0.00011136,2]
[352234897,1739013061199,-500.0,0.00011136,2]
[352234898,1739013061209,-503.46704547,0.00011136,2]
[352234899,1739013061218,-500.0,0.00011136,2]
[352234900,1739013061227,-502.10165958,0.00011136,2]
[352234901,1739013061237,-504.7273677,0.00011136,2]
[352234902,1739013061247,-500.0,0.00011136,2]
[352234903,1739013061257,-500.0,0.00011136,2]
[352234904,1739013061268,-833.37,0.00011136,2]
[352234905,1739013061279,-500.0,0.00011136,2]
[352234906,1739013061289,-869.88,0.00011136,2]
[352234907,1739013061299,-500.92656763,0.00011136,2]
[352234908,1739013061309,-500.0,0.00011136,2]
[352234909,1739013061319,-500.0,0.00011136,2]
[352234910,1739013061330,-500.0,0.00011136,2]
[352234911,1739013061340,-502.21867091,0.00011136,2]
[352234912,1739013061356,-500.0,0.00011136,2]
[352234913,1739013061366,-500.0,0.00011136,2]
[352234914,1739013061376,-589.54266638,0.00011136,2]
[352234915,1739013061386,-500.0,0.00011136,2]
[352234916,1739013061396,-500.0,0.00011136,2]
[352234917,1739013061406,-500.0,0.00011136,2]
[352234918,1739013061416,-1093.73,0.00011136,2]
[352234919,1739013061427,-500.0,0.00011136,2]
[352234920,1739013061436,-500.0,0.00011136,2]
[352234921,1739013061446,-502.52431093,0.00011136,2]
[352234922,1739013061456,-500.0,0.00011136,2]
[352234923,1739013061467,-665.78,0.00011136,2]
[352234924,1739013061477,-1222.11,0.00011136,2]
[352234925,1739013061486,-500.0,0.00011136,2]
[352234926,1739013061496,-500.0,0.00011136,2]
[352234927,1739013061505,-500.0,0.00011136,2]
[352234928,1739013061516,-574.31920434,0.00011136,2]
[352234929,1739013061526,-508.71,0.00011136,2]
[352234930,1739013061535,-500.0,0.00011136,2]
[352234931,1739013061545,-500.0,0.00011136,2]
[352234932,1739013061555,-500.0,0.00011136,2]
[352234933,1739013061564,-557.94,0.00011136,2]
[352234934,1739013061573,-500.0,0.00011136,2]
[352234935,1739013061582,-500.0,0.00011136,2]
[352234936,1739013061592,-500.0,0.00011136,2]
[352234937,1739013061601,-500.0,0.00011136,2]
[352234938,1739013061611,-255.0,0.00011141,2]
[352234939,1739013061621,-156.95,0.00011146,2]
[352234940,1739013061631,-1000.0,0.00011201,2]
[352234941,1739013061642,-797.14,0.00011209,2]
[352234942,1739013061652,-1731.03,0.00011209,2]
[352234943,1739013061661,-500.0,0.00011209,2]
[352234944,1739013061671,-500.0,0.00011209,2]
[352234945,1739013061682,-500.0,0.00011209,2]
[352234946,1739013061692,-668.35,0.00011209,2]
[352234947,1739013061702,-2004.66,0.00011209,2]
[352234948,1739013061711,-500.0,0.00011209,2]
[352234949,1739013061719,-1077.05,0.00011209,2]
[352234950,1739013061730,-2089.48,0.00011209,2]
[352234951,1739013061741,-509.35586572,0.00011209,2]
[352234952,1739013061751,-500.0,0.00011209,2]
[352234953,1739013061761,-1253.82,0.00011209,2]
[352234954,1739013061772,-1374.02,0.00011209,2]
[352234955,1739013061782,-2869.72,0.00011209,2]
[352234956,1739013061792,-500.0,0.00011209,2]
[352234957,1739013061802,-1294.44,0.00011209,2]
[352234958,1739013061811,-983.53,0.00011209,2]
[352234959,1739013061820,-933.79,0.00011209,2]
[352234960,1739013061829,-1322.64,0.00011209,2]
[352234961,1739013061839,-900.11,0.00011209,2]
[352234962,1739013061848,-795.17,0.00011209,2]
[352234963,1739013061857,-956.97,0.00011209,2]
[352234964,1739013061867,-1034.64,0.00011209,2]
[352234965,1739013061876,-2154.87,0.00011209,2]
[352234966,1739013061886,-498.67699642,0.00011209,2]
[352234967,1739013061895,-909.52,0.00011209,2]
[352234968,1739013061905,-814.41,0.00011209,2]
[352234969,1739013061914,-853.96,0.00011209,2]
[352234970,1739013061923,-1757.52,0.00011209,2]
[352234971,1739013061932,-1223.58,0.00011209,2]
[352234972,1739013061943,-1771.87,0.00011209,2]
[352234973,1739013061952,-1197.12,0.00011209,2]
[352234974,1739013061962,-500.0,0.00011209,2]
[352234975,1739013061973,-768.54,0.00011209,2]
[352234976,1739013061982,-1395.95,0.00011209,2]
[352234977,1739013061992,-974.36,0.00011209,2]
[352234978,1739013062001,-500.0,0.00011209,2]
[352234979,1739013062011,-1653.78,0.00011209,2]
[352234980,1739013062021,-500.0,0.00011209,2]
[352234981,1739013062030,-1136.85,0.00011209,2]
[352234982,1739013062039,-547.7,0.00011209,2]
[352234983,1739013062049,-815.55,0.00011209,2]
[352234984,1739013062060,-500.0,0.00011209,2]
[352234985,1739013062069,-1561.4,0.00011209,2]
[352234986,1739013062078,-676.39,0.00011209,2]
[352234987,1739013062088,-933.77,0.00011209,2]
[352234988,1739013062098,-727.83,0.00011209,2]
[352234989,1739013062107,-678.91,0.00011209,2]
[352234990,1739013062118,-500.0,0.00011209,2]
[352234991,1739013062128,-804.99,0.00011209,2]
[352234992,1739013062137,-500.0,0.00011209,2]
[352234993,1739013062147,-1045.63,0.00011209,2]
[352234994,1739013062157,-878.01,0.00011209,2]
[352234995,1739013062166,-874.83,0.00011209,2]
[352234996,1739013062176,-1287.44,0.00011209,2]
[352234997,1739013062185,-1828.17,0.00011209,2]
[352234998,1739013062195,-1372.8,0.00011209,2]
[352234999,1739013062204,-500.0,0.00011209,2]
[352235000,1739013062214,-500.0,0.00011209,2]
[352235001,1739013062223,-500.0,0.00011209,2]
[352235002,1739013062233,-1591.32,0.00011209,2]
[352235003,1739013062243,-1277.24,0.00011209,2]
[352235004,1739013062252,-609.5,0.00011209,2]
[352235005,1739013062261,-1105.29,0.00011209,2]
[352235006,1739013062272,-1133.97,0.00011209,2]
[352235007,1739013062282,-2052.84,0.00011209,2]
[352235008,1739013062291,-1506.96,0.00011209,2]
[352235009,1739013062302,-500.0,0.00011209,2]
[352235010,1739013062311,-585.89,0.00011209,2]
[352235011,1739013062322,-2183.67,0.00011209,2]
[352235012,1739013062331,-1881.39,0.00011209,2]
[352235013,1739013062341,-214.0,0.0001121,2]
[352235014,1739013062354,-175.6723907,0.00011228,2]
[352235015,1739013062364,-413.6058325,0.00011251,2]
[352235016,1739013062374,-2624.82,0.00011269,2]
[352235017,1739013062383,-2311.14,0.00011269,2]
[352235018,1739013062393,-1530.98,0.00011269,2]
[352235019,1739013062404,-2112.49,0.00011269,2]
[352235020,1739013062414,-5023.57,0.00011269,2]
[352235021,1739013062424,-4357.4,0.00011269,2]
[352235022,1739013062434,-500.0,0.00011269,2]
[352235023,1739013062444,-3534.9,0.00011269,2]
[352235024,1739013062454,-3593.71,0.00011269,2]
[352235025,1739013062463,-1030.68,0.00011269,2]
[352235026,1739013062473,-1465.28,0.00011269,2]
[352235027,1739013062484,-2712.71,0.00011269,2]
[352235028,1739013062494,-3901.85,0.00011269,2]
[352235029,1739013062503,-5908.12,0.00011269,2]
[352235030,1739013062513,-5342.84,0.00011269,2]
[352235031,1739013062523,-2391.85,0.00011269,2]
[352235032,1739013062534,-2076.57,0.00011269,2]
[352235033,1739013062543,-500.0,0.00011269,2]
[352235034,1739013062554,-5698.13,0.00011269,2]
[352235035,1739013062745,-2309.9,0.00011269,2]
[352235036,1739013062755,-2212.02,0.00011269,2]
[352235037,1739013062764,-500.0,0.00011269,2]